Cogmind - Beta 15 @@@ ROGUE MODE // 2025.08.07 @ 05:39:29 Player: GayPredator Result: Core destroyed Performance ------------- Evolutions (4) 2000 Regions Visited (5) 1000 Robots Destroyed (102) 510 Value Destroyed (3386) 3386 Prototype IDs (13) 260 Alien Tech Used (0) 0 Bonus (2125) 2125 TOTAL SCORE: 9281 Bonus ------- High Alert Combat Kills 587 Follower Combat Kills 738 Registered with UFD 300 Met Optimus in HQ 500 Cogmind --------- Core Integrity 0/850 Matter 241/300 Energy 143/200 System Corruption 2% Temperature Critical (785) Movement Walking (120) Location -6/Factory Parts ------- > --- POWER (2) -------- Light Angular Momentum Engine Light Angular Momentum Engine > --- PROPULSION (4) --- Carbon-fiber Leg Carbon-fiber Leg Carbon-fiber Leg Flexi-carbon Leg > --- UTILITY (5) ------ Large Storage Unit Improved Signal Interpreter Improved Light Armor Plating System Shield System Restoration Module > --- WEAPON (4) ------- Heavy Laser Gatling Laser Thermic Laser Thermic Laser > --- INVENTORY (15) --- Scrap Suit Advanced Heat Sink Improved Cooling System Makeshift Microdissipator Network Energy Well (350) Matter Compressor (250) Improved Sensor Array Improved Signal Interpreter Improved Targeting Computer Hacking Suite High-powered Tractor Beam Improved Field Recycling Unit (0) Heavy Flak Cannon Spear Peak State ------------ > --- POWER ------------ Reinforced Deuterium Engine Neutrino Core > --- PROPULSION ------- Multireflex Exoskeleton Multireflex Exoskeleton > --- UTILITY ---------- Large Storage Unit Improved Targeting Computer Recoil Stabilizer Kinecellerator Layered Medium Armor Plating > --- WEAPON ----------- High-powered Field Laser Heavy Machine Gun Heavy Machine Gun Magnetic Acceleration Cannon > --- INVENTORY -------- Improved Deuterium Engine Improved Deuterium Engine Multireflex Exoskeleton Improved Cooling System Makeshift Microdissipator Network High-capacity Matter Pod Structural Scanner Improved Trap Scanner Signal Interpreter EM Disruption Field Force Field Field Recycling Unit Mining Laser CPS Tube [Rating: 74] Favorites ----------- Power Ion Engine Engine Ion Engine Power Core Neutrino Core Propulsion Light Treads Treads Light Treads Leg Multireflex Exoskeleton Wheel Wheel Utility Large Storage Unit Device Improved Sensor Array Storage Large Storage Unit Processor Improved Signal Interpreter Hackware System Shield Protection Medium Armor Plating Weapon Light Cannon Energy Gun Heavy Laser Ballistic Gun Coil Gun Ballistic Cannon Light Cannon Launcher Rocket Launcher Special Weapon Mining Laser Build | -11 -10 -10 -10 -9 -6 ------- Run | Yrd Mat Min Sub Scr Fac Slots Evolved 8 | . . . . . 8 Power 1 | . . . . . 1 Propulsion 2 | . . . . . 2 Utility 3 | . . . . . 3 Weapon 2 | . . . . . 2 Parts Attached 115 | 7 5 2 . 5 96 Power 16 | 1 . . . 1 14 Engine 13 | 1 . . . 1 11 Core 3 | . . . . . 3 Reactor . | . . . . . . Propulsion 27 | 2 . . . 1 24 Treads 6 | 2 . . . 1 3 Leg 15 | . . . . . 15 Wheel 6 | . . . . . 6 Hover . | . . . . . . Flight . | . . . . . . Utility 29 | 2 1 1 . 1 24 Device 17 | 1 . 1 . . 15 Storage 4 | 1 1 . . . 2 Processor 2 | . . . . . 2 Hackware 1 | . . . . . 1 Protection 5 | . . . . 1 4 Artifact . | . . . . . . Weapon 43 | 2 4 1 . 2 34 Energy Gun 10 | . . . . . 10 Energy Cannon . | . . . . . . Ballistic Gun 18 | 2 . . . . 16 Ballistic Cannon 12 | . 3 1 . 1 7 Launcher 2 | . . . . 1 1 Special Weapon 1 | . 1 . . . . Impact Weapon . | . . . . . . Slashing Weapon . | . . . . . . Piercing Weapon . | . . . . . . Special Melee Weapon . | . . . . . . Unidentified Prototypes 7 | . . . . . 7 Parts Lost 40 | . . . . . 40 Power 8 | . . . . . 8 Propulsion 13 | . . . . . 13 Utility 6 | . . . . . 6 Weapon 13 | . . . . . 13 Highest Loss Streak 8 | . . . . . 8 To Critical Strikes 1 | . . . . . 1 Average Backups 11 | 3 7 9 11 14 12 Power . | . 1 1 1 1 . Propulsion 1 | 1 2 2 2 2 . Utility 6 | . . 2 4 5 8 Weapon 2 | 1 3 3 4 3 1 Tool/Special . | . . . . . . Unused Backups 30 | . 2 . . 2 26 Power 4 | . 1 . . 1 2 Propulsion . | . . . . . . Utility 19 | . . . . 1 18 Weapon 5 | . 1 . . . 4 Tool/Special 2 | . . . . . 2 Average Slot Usage (%) 91 | . 100 99 100 99 85 Engine 11 | . 14 14 14 14 9 Treads 13 | . 28 28 28 28 2 Leg 6 | . . . . . 12 Wheel 1 | . . . . . 2 Device 10 | . 14 14 14 1 12 Storage 9 | . 14 14 14 14 6 Processor 2 | . . . . . 5 Hackware 2 | . . . . . 3 Protection 4 | . . . . 12 2 Energy Gun 3 | . . . . . 6 Ballistic Gun 4 | . 1 . . . 7 Ballistic Cannon 16 | . 26 27 23 27 8 Peak Build Rating 74 | 9 9 10 8 12 74 Average Rating 35 | 6 8 8 8 10 56 On Entrance 7 | . 9 9 8 8 12 Naked Turns . | . . . . . . Heaviest Build 90 | 13 32 32 32 43 90 Greatest Support 76 | 40 40 40 40 40 76 Greatest Overweight (x) 12 | . . . . 1 12 Average Overweight (x) . | . . . . . . Largest Inventory Capacity 15 | 8 15 15 15 15 15 Average Capacity 14 | 7 13 15 15 15 15 Most Carried 15 | 5 9 11 12 15 15 Average Carried 12 | 3 7 9 11 14 12 Final Capacity 15 | 8 15 15 15 15 15 Final Carried 15 | 5 9 11 12 15 15 Class Distribution -------------------- 43% | Mutant 28% | Scavenger-Skirmisher 10% | Scavenger-Gunner 3% | Tank 3% | Scavenger-Tank 3% | Gunner Dominant Class ---------------- Mutant | -10/Materials Mutant | -10/Mines Mutant | -10/Subcaves Mutant | -9/Scraptown Scavenger-Skirmisher | -6/Factory Resources | -11 -10 -10 -10 -9 -6 ----------- Run | Yrd Mat Min Sub Scr Fac Matter Collected 6072 | 273 317 114 . 316 5052 Remotely . | . . . . . . Salvage Created 4022 | 98 359 22 . . 3543 Parts 188 | 4 38 . . . 146 Haulers Intercepted 8 | . 2 . . . 6 Recyclers Shooed 8 | . . . . . 8 Parts Field Recycled 39 | . . . . . 39 Retrieved Matter 239 | . . . . . 239 Parts Self-Destructed 6 | . . . 6 . . Prevented . | . . . . . . Kills | -11 -10 -10 -10 -9 -6 ------- Run | Yrd Mat Min Sub Scr Fac Combat Hostiles Destroyed 67 | . 13 4 . . 50 Guns 26 | . . . . . 26 Cannons 41 | . 13 4 . . 24 Classes Destroyed 15 | 2 5 1 . . 7 Worker 7 | . . . . . 7 Builder 6 | . . . . . 6 Tunneler 3 | 1 . . . . 2 Hauler 8 | . 2 . . . 6 Recycler 7 | 1 . . . . 6 Operator 4 | . 2 . . . 2 Watcher 4 | . 2 . . . 2 Swarmer 11 | . 6 . . . 5 Grunt 31 | . 7 . . . 24 Duelist 1 | . . . . . 1 Sentry 4 | . . . . . 4 Hunter 7 | . . . . . 7 Programmer 7 | . . . . . 7 Heavy 2 | . . . . . 2 Assembled 4 | . . 4 . . . Best Kill Streak 9 | 1 8 2 . . 9 Combat Bots Only 6 | . 6 2 . . 5 Max Kills in Single Turn 2 | 1 1 1 . . 2 Gunslinging 1 | . . . . . 1 Exploded . | . . . . . . Melee . | . . . . . . Uniques/NPCs Destroyed . | . . . . . . Combat | -11 -10 -10 -10 -9 -6 -------- Run | Yrd Mat Min Sub Scr Fac Hostile Shots Fired 632 | . 29 24 . . 579 Missed 163 | . 5 5 . . 153 Hits 469 | . 24 19 . . 426 Melee 9 | . . 3 . . 6 Projectile 460 | . 24 16 . . 420 AOE 2 | . . . . . 2 Critical Strikes 17 | . 1 1 . . 15 Part Disruptions 1 | . . . . . 1 Damage Taken 7832 | . 242 305 . . 7285 Core 961 | . 53 36 . . 872 Absorbed by Shields . | . . . . . . Core Remaining (%) 82 | 100 . . . 64 . Volleys Fired 309 | 11 43 14 12 . 229 Largest 4 | 2 2 2 1 . 4 Hottest 319 | 40 100 60 100 . 319 Shots Fired 779 | 22 75 23 12 . 647 Gun 350 | 22 . . . . 328 Cannon 418 | . 74 23 2 . 319 Launcher . | . . . . . . Special 11 | . 1 . 10 . . Kinetic 656 | 22 74 23 2 . 535 Thermal 123 | . 1 . 10 . 112 Explosive . | . . . . . . Electromagnetic . | . . . . . . Robot Hit Streak 14 | 5 6 4 . . 14 Robot Miss Streak 5 | 2 4 2 . . 5 Penetration Max 2 | . . . . . 2 Secondary Targets 4 | . . . . . 4 Max Gunslinging Chain 1 | . . . . . 1 Shots Hit Robots 462 | 14 35 11 . . 402 Core Hits 216 | 5 20 6 . . 185 Critical Kills 11 | . . . . . 11 Critical Parts Destroyed 11 | . . . . . 11 Critical Strikes 43 | . 2 . . . 41 Burn 3 | . . . . . 3 Destroy 22 | . . . . . 22 Blast 18 | . 2 . . . 16 Melee Attacks . | . . . . . . Impact . | . . . . . . Slashing . | . . . . . . Piercing . | . . . . . . Sneak Attacks . | . . . . . . Combat Hostiles . | . . . . . . Follow-up Attacks . | . . . . . . Damage Inflicted 11481 | 112 611 221 . . 10537 Guns 5056 | 112 . . . . 4944 Cannons 6247 | . 611 221 . . 5415 Explosions 93 | . . . . . 93 Melee . | . . . . . . Ramming 85 | . . . . . 85 Kinetic 9556 | 112 611 221 . . 8612 Thermal 1747 | . . . . . 1747 Explosive 93 | . . . . . 93 Electromagnetic . | . . . . . . Impact . | . . . . . . Slashing . | . . . . . . Piercing . | . . . . . . Highest Corruption 6 | . . . . . 6 Average Corruption 1 | . . . . . 1 Corruption Purged 4 | . . . . . 4 Corruption Blocked . | . . . . . . Effects 33 | . . . . . 33 Message Errors 8 | . . . . . 8 Matter Fused 7 | . . . . . 7 Heat Flow Errors 4 | . . . . . 4 Energy Discharges 7 | . . . . . 7 Parts Rejected 1 | . . . . . 1 Data Loss (minor) 3 | . . . . . 3 Data Loss (major) 1 | . . . . . 1 Misfires 1 | . . . . . 1 Weapon Failures 1 | . . . . . 1 Overload Shots . | . . . . . . Overflow Damage 273 | . . 18 . . 255 Projectiles 248 | . . 18 . . 230 Explosions 19 | . . . . . 19 Melee 6 | . . . . . 6 Knockbacks 63 | . 5 4 . . 54 Impact . | . . . . . . Kinetic 57 | . 5 4 . . 48 Secondary 6 | . . . . . 6 Self-Inflicted Damage . | . . . . . . Shots . | . . . . . . Rammed 2 | . . . . . 2 Targets Rammed 13 | . . . . . 13 Kicked 11 | . . . . . 11 Crushed . | . . . . . . Highest Temperature 785 | . 24 20 . . 785 Average Temperature 126 | . 15 18 . . 132 Received Heat Transfer 1883 | . 87 20 . . 1776 Effects 27 | . . . . . 27 Shutdowns 12 | . . . . . 12 Energy Bleed 2 | . . . . . 2 Interference 4 | . . . . . 4 Matter Decay 3 | . . . . . 3 Damage (minor) 3 | . . . . . 3 Damage (major) 2 | . . . . . 2 Damage (core) 1 | . . . . . 1 Siege Activations . | . . . . . . Martial Activations . | . . . . . . Shielding Activations . | . . . . . . Robots Disrupted . | . . . . . . Combat Hostiles . | . . . . . . Robots Corrupted . | . . . . . . Combat Hostiles . | . . . . . . Parts Fried . | . . . . . . Impact Corruptions 1 | . . . . . 1 Robots Melted 1 | . . . . . 1 Combat Hostiles . | . . . . . . Parts Melted 6 | . . . . . 6 Heat Transferred 3904 | . . . . . 3904 Parts Sabotaged . | . . . . . . Parts Stolen . | . . . . . . Parts Stripped . | . . . . . . Power Chain Reactions . | . . . . . . Alert | -11 -10 -10 -10 -9 -6 ------- Run | Yrd Mat Min Sub Scr Fac Maximum Alert Level 4 | . . . . . 4 Low Security (%) 49 | 100 100 100 . . 35 Level 1 10 | . . . . . 12 Level 2 11 | . . . . . 14 Level 3 22 | . . . . . 28 Level 4 7 | . . . . . 8 Level 5 . | . . . . . . High Security . | . . . . . . Max Security . | . . . . . . Peak Influence 1175 | 5 149 49 . . 1175 Initial 49 | . . 49 . . . Average 412 | . 56 13 . . 513 Influence Increases 2959 | 10 464 . . . 2485 Destroy 0b10 Robot/C 1620 | . 260 . . . 1360 Destroy 0b10 Robot/NC 210 | 10 30 . . . 170 Destroy Leader 436 | . 48 . . . 388 Allied During Kill 140 | . . . . . 140 Successful Hack 57 | . 32 . . . 25 Disable Machine 135 | . 45 . . . 90 Destroy Structure 121 | . 4 . . . 117 Lose Combat Pursuer 240 | . 45 . . . 195 Influence Decreases 1784 | 10 335 129 . . 1310 Entered New Map 80 | . . 80 . . . Time Decay 1084 | 10 335 49 . . 690 Lost Part 400 | . . . . . 400 Lost Ally 220 | . . . . . 220 Squads Dispatched 29 | . 1 . . . 28 Investigation 8 | . 1 . . . 7 Extermination 9 | . . . . . 9 Reinforcement 11 | . . . . . 11 Assault 1 | . . . . . 1 Garrison . | . . . . . . Intercept . | . . . . . . Searches Triggered . | . . . . . . Construction Impeded 2 | . . . . . 2 Haulers Reinforced 4 | . . . . . 4 Active Scanning Responses . | . . . . . . Cargo Convoy Interrupts 1 | . . . . . 1 Stealth | -11 -10 -10 -10 -9 -6 --------- Run | Yrd Mat Min Sub Scr Fac Distress Signals 8 | . 3 1 . . 4 Communications Jammed . | . . . . . . Distress Signals . | . . . . . . Times Spotted 141 | . 21 8 . . 112 Peak Tracking Total 7 | . 4 6 . . 7 Tactical Retreats 12 | . 2 1 . . 9 Traps | -11 -10 -10 -10 -9 -6 ------- Run | Yrd Mat Min Sub Scr Fac Traps Triggered 2 | . 1 . . . 1 Indirectly . | . . . . . . Trap Hack Attempts . | . . . . . . Triggered . | . . . . . . Disarmed . | . . . . . . Reprogrammed . | . . . . . . Reused . | . . . . . . Traps Extracted . | . . . . . . Installed . | . . . . . . Triggered . | . . . . . . Machines | -11 -10 -10 -10 -9 -6 ---------- Run | Yrd Mat Min Sub Scr Fac Machines Disabled 9 | . 3 . . . 6 Max in Single Turn 1 | . 1 . . . 1 Machines Repaired . | . . . . . . Machines Dismantled . | . . . . . . Machines Sabotaged . | . . . . . . Overloaded Fab Kills . | . . . . . . Hacking | -11 -10 -10 -10 -9 -6 --------- Run | Yrd Mat Min Sub Scr Fac Machines Accessed 28 | . 7 . . 3 18 Terminals 14 | . 6 . . . 8 Fabricators 1 | . . . . . 1 Repair Stations 1 | . . . . . 1 Recycling Units 7 | . 1 . . . 6 Scanalyzers 1 | . . . . . 1 Garrison Access 1 | . . . . . 1 Total Hacks 70 | . 24 . . 6 40 Successful 40 | . 17 . . 6 17 Failed 30 | . 7 . . . 23 Catastrophic 6 | . . . . . 6 Database Lockouts . | . . . . . . Manual 31 | . 12 . . . 19 Terminals 36 | . 21 . . . 15 Fabricators 3 | . . . . . 3 Repair Stations 3 | . . . . . 3 Recycling Units 16 | . 3 . . . 13 Scanalyzers 2 | . . . . . 2 Garrison Access 4 | . . . . . 4 Terminal Hacks 15 | . 6 . . 6 3 Record 5 | . . . . 5 . Robot Analysis 2 | . 2 . . . . Open DSF 1 | . . . . . 1 Terminal Index 1 | . 1 . . . . Alert Level 1 | . 1 . . . . Locate Traps 1 | . 1 . . . . Zone Layout 3 | . 1 . . . 2 Proto ID Catalog 1 | . . . . 1 . Fabricator Hacks 1 | . . . . . 1 Network Status 1 | . . . . . 1 Repair Station Hacks 1 | . . . . . 1 Scan Component 1 | . . . . . 1 Recycling Unit Hacks 6 | . 3 . . . 3 Process 2 | . 1 . . . 1 Report Inventory 2 | . 1 . . . 1 Retrieve Matter 2 | . 1 . . . 1 Scanalyzer 2 | . . . . . 2 Insert Component 1 | . . . . . 1 Analyze 1 | . . . . . 1 Garrison Access Hacks . | . . . . . . Unauthorized Hacks 15 | . 8 . . . 7 Terminals 9 | . 8 . . . 1 Botnet 3 | . 2 . . . 1 Skim 6 | . 6 . . . . Fabricators 1 | . . . . . 1 Liberate 1 | . . . . . 1 Repair Stations . | . . . . . . Recycling Units 5 | . . . . . 5 Fedlink 3 | . . . . . 3 Scrapoids 2 | . . . . . 2 Scanalyzers . | . . . . . . Garrison Access . | . . . . . . Data Cores Recovered 2 | . 2 . . . . Used . | . . . . . . Hacking Detections 22 | . 7 . . . 15 Full Trace Events 2 | . . . . . 2 Feedback Events . | . . . . . . Feedback Blocked . | . . . . . . Robot Schematics Acquired . | . . . . . . Robots Built . | . . . . . . Authchips . | . . . . . . Time . | . . . . . . Total Robot Build Rating . | . . . . . . Part Schematics Acquired 1 | . . . . . 1 Parts Built . | . . . . . . Authchips . | . . . . . . Time . | . . . . . . Total Part Build Rating . | . . . . . . Parts Repaired . | . . . . . . Time . | . . . . . . Parts Recycled . | . . . . . . Recycled Matter 157 | . 19 . . . 138 Retrieved Matter 157 | . 19 . . . 138 Retrieved Components . | . . . . . . Parts Scanalyzed 1 | . . . . . 1 Part Schematics Acquired 1 | . . . . . 1 Parts Damaged . | . . . . . . Bothacking | -11 -10 -10 -10 -9 -6 ------------ Run | Yrd Mat Min Sub Scr Fac Used RIF Installer . | . . . . . . Robots Hacked . | . . . . . . Non-combat . | . . . . . . Combat . | . . . . . . Robot Hacks Applied . | . . . . . . Relay Couplers Released . | . . . . . . Fabnet Peak Effective % . | . . . . . . Robots Rewired . | . . . . . . Allies Hacked . | . . . . . . Hacks Repelled . | . . . . . . Allies | -11 -10 -10 -10 -9 -6 -------- Run | Yrd Mat Min Sub Scr Fac Total Allies 15 | . . . . . 15 Largest Group 6 | . . . . . 6 Highest-Rated Group 259 | . . . . . 259 Highest-Rated Ally 47 | . . . . . 47 Total Orders . | . . . . . . Ally Attacks 191 | . . . . . 191 Total Damage 3367 | . . . . . 3367 Kills 22 | . . . . . 22 Allies Corrupted 1 | . . . . . 1 Allies Melted . | . . . . . . Intel | -11 -10 -10 -10 -9 -6 ------- Run | Yrd Mat Min Sub Scr Fac Active Infowar (turns) 4645 | 30 833 205 367 219 2991 Sensors 2343 | . . . . . 2343 Terrain 1024 | 30 833 161 . . . Structural 632 | . . 44 367 219 2 Traps 1006 | . . . . . 1006 Robot Analysis Total 2 | . 2 . . . . Derelict Logs Recovered 2 | . . . 1 1 . Drone Launches . | . . . . . . Drone Recoveries . | . . . . . . Exploration | -11 -10 -10 -10 -9 -6 ------------- Run | Yrd Mat Min Sub Scr Fac Turns Passed 7556 | 122 833 206 367 1756 4272 Spaces Moved 3624 | 50 394 95 189 1082 1814 Core 7 | 6 . . . . 1 Treads 2102 | 44 394 95 189 1082 298 Legs 1359 | . . . . . 1359 Wheels 156 | . . . . . 156 Hover . | . . . . . . Flight . | . . . . . . Fastest Speed 50 | 50 160 160 160 160 89 Average Speed 160 | 146 160 160 160 160 161 Slowest Speed 650 | 160 160 160 160 240 650 Overloaded Moves . | . . . . . . Propulsion Burnouts . | . . . . . . Robots Hopped . | . . . . . . Potential Cave-ins . | . . . . . . Cave-ins Triggered . | . . . . . . Exploration Rate (%) 37 | 4 56 21 24 83 35 Regions Visited 5 Branch Regions 3 Pre-discovered Areas 2 | . . . 1 . 1 Known Exits Taken 1 | . . 1 . . . Unknown Exits Taken 4 | 1 1 . 1 1 . Scrap Searched 4 | . . . . 4 . Spaces Dug 4 | . . . . . 4 Terrain Destroyed 109 | . . . . . 109 Melee . | . . . . . . Projectile 74 | . . . . . 74 AOE 34 | . . . . . 34 Terrain Rammed . | . . . . . . Walls Destroyed . | . . . . . . Machines Disabled . | . . . . . . Actions | -11 -10 -10 -10 -9 -6 --------- Run | Yrd Mat Min Sub Scr Fac Total 4704 | 78 520 126 220 1110 2650 Wait 408 | 6 69 12 15 . 306 Move 3619 | 49 393 94 188 1081 1814 Hop . | . . . . . . Pick Up 81 | 5 5 2 1 10 58 Fast Attach 79 | 7 3 1 . 2 66 Attach 47 | . . 1 . 3 43 Detach 21 | . . 1 . 1 19 Swap 35 | . 2 1 4 2 26 Drop 92 | . 5 . . 11 76 Fire 309 | 11 43 14 12 . 229 Melee . | . . . . . . Ram . | . . . . . . Kick 11 | . . . . . 11 Crush 2 | . . . . . 2 Escape Stasis . | . . . . . . Rewire . | . . . . . . Trap . | . . . . . . Miscellaneous . | . . . . . . Route ------- -11/Scrapyard -10/Materials (discovered 5 exits: *Mat x3 / [*Min x2]) -10/Mines (discovered 2 exits: Mat / *Sub) -10/Subcaves (discovered 2 exits: [*Mat] / *Scr) -9/Scraptown (discovered 2 exits: *Fac x2) -6/Factory (discovered 2 exits: *Fac / [*Ext]) History --------- Turn | Location | Event 11 | -11/Scrapyard | Discovered new exit (range 15) 123 | -11/Scrapyard | Entered Materials 317 | -10/Materials | Build established: Mutant 319 | -10/Materials | Discovered new exit (range 9) 733 | -10/Materials | Discovered new exit (range 10) 812 | -10/Materials | Learned location of 1 exit from Storage 852 | -10/Materials | Identified exit to Materials 855 | -10/Materials | Discovered new exit (range 16) 899 | -10/Materials | Learned 2 Mines zone layouts 905 | -10/Materials | Learned location of 1 exit from Storage 922 | -10/Materials | Learned Materials stockpile data 956 | -10/Materials | Entered Mines 957 | -10/Mines | Assembled infested the area 958 | -10/Mines | Identified exit to Subcaves 962 | -10/Mines | Assisted by a Guerilla fighting off Assembled 1143 | -10/Mines | Found a hidden stash of uninstalled traps 1162 | -10/Mines | Entered Subcaves 1163 | -10/Subcaves | Approached by a straggling Scientist 1208 | -10/Subcaves | Discovered new exit (range 5) 1343 | -10/Subcaves | Shifting Twisted Machinery released Sub. Shrapnel Launcher 1359 | -10/Subcaves | Shifting Twisted Machinery released Sub. Laser 1362 | -10/Subcaves | Shifting Twisted Machinery released Shrapnel Trap 1487 | -10/Subcaves | Learned location of Zion (-7) 1487 | -10/Subcaves | Met a Zionite searching for "candidates" 1518 | -10/Subcaves | Scientist uncovered a shortcut to Scraptown 1529 | -10/Subcaves | Entered Scraptown 1558 | -9/Scraptown | Heard Great Nut preacher, LISTEN AND RECITE! 1910 | -9/Scraptown | Scanned Subdweller tech in exchange for log data 1917 | -9/Scraptown | Learned Research security intel 1942 | -9/Scraptown | Discovered new exit (range 5) 2062 | -9/Scraptown | Visited Scrapoid Research Area 2096 | -9/Scraptown | Visited Awakened 2112 | -9/Scraptown | Visited Spacefarers 2396 | -9/Scraptown | Visited UFD Registry 2396 | -9/Scraptown | Registered with UFD as "Fluxbot" 2484 | -9/Scraptown | Visited Cartography Club 2650 | -9/Scraptown | Visited Scrapoid Pod Storage 2659 | -9/Scraptown | Found Scrapoid Pod 2691 | -9/Scraptown | Visited Abandonware Association 2710 | -9/Scraptown | Learned abandonware demo "HACKBUD.EXE" 2710 | -9/Scraptown | Learned abandonware demo "KABOOM.EXE" 2748 | -9/Scraptown | Visited Science Guys 2791 | -9/Scraptown | Visited Junk Repository 2822 | -9/Scraptown | Visited DA-N13 Charitable Foundation 2838 | -9/Scraptown | Found DCF Scrap (25 items) 2903 | -9/Scraptown | Visited LU-1G1's Boring Crew 3194 | -9/Scraptown | Met Optimus 3194 | -9/Scraptown | Accepted into 0bPrime 3282 | -9/Scraptown | Discovered new exit (range 3) 3285 | -9/Scraptown | Entered Factory 3285 | -6/Factory | Evolved 8 slots: Power x1, Propulsion x2, Utility x3, Weapon x2 3398 | -6/Factory | Identified exit to DSF 3435 | -6/Factory | Discovered new exit (range 7) 3769 | -6/Factory | Scrapoid reinforcements arrived 3778 | -6/Factory | P-60 Hacker assimilated allied 06F04-D 3802 | -6/Factory | Lost 8 parts (2p2n4w) 3898 | -6/Factory | Lost 3 allies 3964 | -6/Factory | Scrapoid Pod released 06F11-D (x5) 4039 | -6/Factory | Spotted B-75 Beast 4055 | -6/Factory | Allies destroyed B-75 Beast 4163 | -6/Factory | Build established: Scavenger-Gunner 4523 | -6/Factory | Cargo convoy interrupted 4638 | -6/Factory | Discovered new exit (range 7) 4649 | -6/Factory | Identified exit to Factory 5251 | -6/Factory | Loaded intel: 7 recycling unit locations 5358 | -6/Factory | Build established: Scavenger-Skirmisher 5608 | -6/Factory | Lost 3 parts (1n1u1w) 6245 | -6/Factory | Learned location of Protoforge (-2) 6351 | -6/Factory | Core integrity fell below 50% 6404 | -6/Factory | Lost 8 parts (2p2n2u2w) 6696 | -6/Factory | Core integrity fell below 20% 6752 | -6/Factory | Lost 5 parts (2n1u2w) 7162 | -6/Factory | Scrapoid reinforcements arrived 7190 | -6/Factory | Found Scrap Suit 7485 | -6/Factory | First assault squad dispatched 7558 | -6/Factory | Core destroyed Last Messages --------------- 07551_ K-01 Serf collects debris. 07552_ System Restoration Module purges 1% system corruption (2%). 07553_ Overheating: Imp. Signal Interpreter damaged (-9). 07553_ Overheating: Carbon-fiber Leg damaged (-16). 07553_ G-67 Veteran suffers critical hit (Destroy). 07553_ Destroyed Flexi-carbon Leg. 07555_ R-10 Processor collects Ovr. Barrage Gun. 07555_ G-67 Veteran destroyed. 07556_ Overheating: Matter decay (-49). 07556_ K-01 Serf collects debris. 07557_ Power failure, Lgt. Angular Momentum Engine shutdown. 07557_ Overheating: Hvy. Laser damaged (-17). 07558_ Power failure, Lgt. Angular Momentum Engine shutdown. 07558_ Overheating: Core damaged (-102). Map ----- +----------------------------------------------------+ | # # | | % # """ # | | % % # """ #? | | % # """ #?? | | [% # "" +??? | | #################+##############% # "??#??? | | # "#######????? ??????##???#% % % # ?????? | | # #???"" """" "?????????# % #####?????? | | # #?"""" """" """???????# #?????????? | | + # """" """" """"??????# #?????????? | | # # """" """" """"??????# #?????????? | | # ! # """" """" """"??????# % #?????????? | | ########## """" """" """"??????#%^ ^ ^^#?????????? | | #???# """" """" """"??????# %%^ ^ #?????????? | | #### #???# ??##### % #?????????? | | ???# #######################T ## #?????????? | | ???# #???????# #?????????? | | ???####### #???????# # ???????? | | ?????????# #???????# + ???????? | | #????????# #???????# % #?????????? | | #????????# ####???????# * #?????????? | | ##########+#??????????# !k R #?????????? | | # #??????????# = % #?????????? | | ##### = """#??????????# s ##########?????????? | | #???# T"#?########## s #??????????????????? | | #???# """#?# ^ @ #??????????????????? | | #???# #?# ^ #??????????????????? | | #???# #?# #??????????????????? | | #???####+##### ^ #??????????????????? | | ###### % ### ^ %[=#??????????????????? | | %### ^ !!%#??????????????????? | | % ^ [=g*#??????????????????? | | ######+##########i##??????????????????? | | ###### [# #??#g#???????????????????? | | ?????####### #??# #???????????????????? | | ???????????# #??# #???????????????????? | | ####??????## #??# #???????????????????? | | #??????## ####+##################### | | "" #?????# # ## !# | | ######"## ## # | | ??????? ??# ## """ """ """ # ! | | ??????##???# ## """ """ """ # ! | | ???????????# ## """ """ """ # | | ???????????# ## # | | ???????????# ## """ """ # | | ???????????############### """ """ " " +! | | ?????????????????????????# """ """ "Y" # = | | ??????????????????????????? """ #* | | ???????????????????????????#######+##### | | ???????????????????????????????????????# | +----------------------------------------------------+ Best States ------------- Heat Dissipation 64 Energy Generation 31 Energy Capacity 505 Matter Stores 300 Matter Capacity 300 Sight Range 16 Robot Scan Range 15 Terrain Scan Range 16 Terrain Scan Density 10 Armor Coverage 600 Phase Shifting 5 Evasion (%) 55 Targeting Accuracy 6 Recoil Reduction 6 Kinecelleration 30 Defensive Hacking 10 Item Schematics ----------------- Com. Wheel | -6/Factory | Scanalyzed Robot Schematics ------------------ None Fabricated ------------ Nothing Repaired ---------- Nothing Alien Tech Used ----------------- None Achievements -------------- None Challenges ------------ None Game ------ Seed ResetCarbideMagmablaster Manual? 0 Play Time 01:37:08 Cumulative 171.8 hours Start 2025.08.07 @ 03:29:45 End 2025.08.07 @ 05:39:29 Sessions 1 Manual Loads 0 Difficulty Rogue Special Mode None Game No. 153 Rogue 114 Adventurer 32 Explorer 7 Win Type - Total 1 Types 1/0/0/0/0/0/0/0/0/0 Lore% 43 Gallery% 62 Achievement% 54 Wizard Run 0 Options --------- Layout 1 ASCII 0 Keyboard 0 Movement Numpad Keybinds 0 Fullscreen 1 Font 24/Smallcaps Map View 50x35 Zoom Use 0% Tactical HUD 1 Map Filters NONE Filters NONE Steam 1 RUN: 6bd231e5-626e-4fe0-8a5a-402391bba493